Cogmind - Beta 14 @@@ ROGUE MODE // 2024.09.02 @ 12:51:09 Player: VR-DUX Result: Destroyed by G-34 Mercenary with Small Laser Performance ------------- Evolutions (0) 0 Regions Visited (1) 200 Robots Destroyed (13) 65 Value Destroyed (304) 304 Prototype IDs (0) 0 Alien Tech Used (0) 0 Bonus (0) 0 TOTAL SCORE: 569 Bonus ------- None Cogmind --------- Core Integrity 0/250 Matter 294/300 Energy 156/160 System Corruption 0% Temperature Cool (8) Movement Core (500) Ox9 Location -10/Materials Parts ------- > --- POWER (1) -------- Light Nuclear Core > --- PROPULSION (2) --- (None) > --- UTILITY (2) ------ Large Storage Unit Structural Scanner > --- WEAPON (2) ------- EM Pulse Gun Assault Rifle > --- INVENTORY (15) --- Light Ion Engine Light Treads Compact Wheel Small Storage Unit Medium Storage Unit Small Laser Light Cannon Grenade Launcher Grenade Launcher Welding Torch Peak State ------------ > --- POWER ------------ Light Nuclear Core > --- PROPULSION ------- Light Treads Compact Wheel > --- UTILITY ---------- Large Storage Unit Structural Scanner > --- WEAPON ----------- Medium Laser Small Laser > --- INVENTORY -------- Light Ion Engine Light Treads Compact Wheel Small Storage Unit Medium Storage Unit EM Pulse Gun Assault Rifle Grenade Launcher Grenade Launcher Welding Torch [Rating: 10] Favorites ----------- Power Light Ion Engine Engine Light Ion Engine Power Core Light Nuclear Core Propulsion Compact Wheel Treads Light Treads Leg Aluminum Leg Wheel Compact Wheel Utility Structural Scanner Device Structural Scanner Storage Large Storage Unit Weapon Small Laser Energy Gun Small Laser Ballistic Gun Assault Rifle Build | -11 -10 ------- Run | Yrd Mat Slots Evolved . | . . Power . | . . Propulsion . | . . Utility . | . . Weapon . | . . Parts Attached 8 | 2 6 Power 1 | . 1 Engine . | . . Core 1 | . 1 Reactor . | . . Propulsion 2 | 1 1 Treads 1 | . 1 Leg . | . . Wheel 1 | 1 . Hover . | . . Flight . | . . Utility 3 | 1 2 Device 2 | 1 1 Storage 1 | . 1 Processor . | . . Hackware . | . . Protection . | . . Artifact . | . . Weapon 2 | . 2 Energy Gun 1 | . 1 Energy Cannon . | . . Ballistic Gun 1 | . 1 Ballistic Cannon . | . . Launcher . | . . Special Weapon . | . . Impact Weapon . | . . Slashing Weapon . | . . Piercing Weapon . | . . Special Melee Weapon . | . . Unidentified Prototypes . | . . Parts Lost 4 | . 4 Power 1 | . 1 Propulsion 2 | . 2 Utility . | . . Weapon 1 | . 1 Highest Loss Streak 4 | . 4 To Critical Strikes . | . . Average Slot Usage (%) 91 | . 91 Engine 9 | . 9 Core 4 | . 4 Treads 9 | . 9 Wheel 9 | . 9 Device 14 | . 14 Storage 14 | . 14 Energy Gun 23 | . 23 Ballistic Gun 4 | . 4 Peak Build Rating 10 | 9 10 Average Rating 7 | 6 7 On Entrance 7 | 6 9 Naked Turns . | . . Heaviest Build 30 | 12 30 Greatest Support 20 | 20 20 Greatest Overweight (x) 9 | . 9 Average Overweight (x) 1 | . 1 Largest Inventory Capacity 15 | 8 15 Average Capacity 13 | 8 14 Most Carried 11 | 6 11 Average Carried 8 | 5 8 Final Capacity 15 | 8 15 Final Carried 10 | 5 10 Class Distribution -------------------- 100% | Mutant Dominant Class ---------------- Mutant | -10/Materials Resources | -11 -10 ----------- Run | Yrd Mat Matter Collected 301 | 220 81 Remotely . | . . Salvage Created 471 | 120 351 Parts 32 | 5 27 Haulers Intercepted . | . . Recyclers Shooed . | . . Parts Field Recycled . | . . Retrieved Matter . | . . Parts Self-Destructed . | . . Prevented . | . . Kills | -11 -10 ------- Run | Yrd Mat Combat Hostiles Destroyed 6 | . 6 Guns 6 | . 6 Classes Destroyed 7 | 2 5 Worker 1 | . 1 Builder 1 | . 1 Tunneler 1 | 1 . Recycler 1 | 1 . Operator 1 | . 1 Watcher 2 | . 2 Grunt 6 | . 6 Best Kill Streak 4 | 1 4 Combat Bots Only 3 | . 3 Max Kills in Single Turn 1 | 1 1 Gunslinging . | . . Exploded . | . . Melee . | . . Uniques/NPCs Destroyed . | . . Combat | -11 -10 -------- Run | Yrd Mat Hostile Shots Fired 72 | . 72 Missed 14 | . 14 Damage Taken 728 | . 728 Core 258 | . 258 Absorbed by Shields . | . . Core Remaining (%) 100 | 100 . Volleys Fired 44 | 6 38 Largest 2 | 2 2 Hottest 90 | 90 90 Shots Fired 84 | 12 72 Gun 84 | 12 72 Cannon . | . . Launcher . | . . Special . | . . Kinetic 14 | . 14 Thermal 56 | 12 44 Explosive . | . . Electromagnetic 14 | . 14 Robot Hit Streak 8 | 2 8 Robot Miss Streak 4 | 2 4 Penetration Max . | . . Secondary Targets 1 | . 1 Max Gunslinging Chain 1 | . 1 Shots Hit Robots 39 | 5 34 Core Hits 22 | 3 19 Critical Kills . | . . Critical Parts Destroyed . | . . Critical Strikes . | . . Melee Attacks . | . . Impact . | . . Slashing . | . . Piercing . | . . Sneak Attacks . | . . Combat Hostiles . | . . Follow-up Attacks . | . . Damage Inflicted 690 | 61 629 Guns 520 | 61 459 Cannons . | . . Explosions 170 | . 170 Melee . | . . Ramming . | . . Kinetic 64 | . 64 Thermal 497 | 61 436 Explosive . | . . Electromagnetic 129 | . 129 Impact . | . . Slashing . | . . Piercing . | . . Highest Corruption . | . . Average Corruption . | . . Corruption Purged . | . . Corruption Blocked . | . . Overload Shots . | . . Overflow Damage 14 | . 14 Projectiles . | . . Explosions 14 | . 14 Melee . | . . Knockbacks . | . . Impact . | . . Kinetic . | . . Secondary . | . . Self-Inflicted Damage 99 | . 99 Shots 3 | . 3 Rammed . | . . Targets Rammed . | . . Kicked . | . . Crushed . | . . Highest Temperature 466 | 120 466 Average Temperature 136 | 48 151 Received Heat Transfer 351 | . 351 Effects 10 | . 10 Shutdowns 2 | . 2 Short Circuit 1 | . 1 Damage (major) 7 | . 7 Siege Activations . | . . Robots Corrupted . | . . Combat Hostiles . | . . Parts Fried . | . . Impact Corruptions . | . . Robots Melted . | . . Combat Hostiles . | . . Parts Melted 2 | . 2 Heat Transferred 1045 | 149 896 Parts Sabotaged . | . . Parts Stolen . | . . Parts Stripped . | . . Power Chain Reactions 4 | . 4 Alert | -11 -10 ------- Run | Yrd Mat Peak Influence 132 | 10 132 Initial 6 | . 6 Average 55 | 5 58 Maximum Alert Level . | . . Low Security (%) 100 | 100 100 Level 1 . | . . Level 2 . | . . Level 3 . | . . Level 4 . | . . Level 5 . | . . High Security . | . . Max Security . | . . Squads Dispatched 1 | . 1 Investigation . | . . Extermination . | . . Reinforcement 1 | . 1 Assault . | . . Garrison . | . . Intercept . | . . Searches Triggered . | . . Construction Impeded . | . . Haulers Reinforced . | . . Active Scanning Responses . | . . Cargo Convoy Interrupts . | . . Stealth | -11 -10 --------- Run | Yrd Mat Distress Signals 1 | . 1 Communications Jammed . | . . Distress Signals . | . . Times Spotted 18 | . 18 Peak Tracking Total 5 | . 5 Tactical Retreats 1 | . 1 Traps | -11 -10 ------- Run | Yrd Mat Traps Triggered . | . . Indirectly . | . . Trap Hack Attempts . | . . Triggered . | . . Disarmed . | . . Reprogrammed . | . . Reused . | . . Traps Extracted . | . . Installed . | . . Triggered . | . . Machines | -11 -10 ---------- Run | Yrd Mat Machines Disabled 2 | . 2 Max in Single Turn 1 | . 1 Machines Repaired . | . . Machines Dismantled . | . . Machines Sabotaged . | . . Overloaded Fab Kills . | . . Hacking | -11 -10 --------- Run | Yrd Mat Machines Accessed 4 | . 4 Terminals 4 | . 4 Fabricators . | . . Repair Stations . | . . Recycling Units . | . . Scanalyzers . | . . Garrison Access . | . . Total Hacks 10 | . 10 Successful 2 | . 2 Failed 8 | . 8 Catastrophic 2 | . 2 Database Lockouts . | . . Manual 10 | . 10 Terminals 10 | . 10 Fabricators . | . . Repair Stations . | . . Recycling Units . | . . Scanalyzers . | . . Garrison Access . | . . Terminal Hacks 2 | . 2 Robot Analysis 2 | . 2 Fabricator Hacks . | . . Repair Station Hacks . | . . Recycling Unit Hacks . | . . Scanalyzer . | . . Garrison Access Hacks . | . . Unauthorized Hacks . | . . Terminals . | . . Fabricators . | . . Repair Stations . | . . Recycling Units . | . . Scanalyzers . | . . Garrison Access . | . . Data Cores Recovered . | . . Used . | . . Hacking Detections 4 | . 4 Full Trace Events 1 | . 1 Feedback Events . | . . Feedback Blocked . | . . Robot Schematics Acquired . | . . Robots Built . | . . Authchips . | . . Time . | . . Total Robot Build Rating . | . . Part Schematics Acquired . | . . Parts Built . | . . Authchips . | . . Time . | . . Total Part Build Rating . | . . Parts Repaired . | . . Time . | . . Parts Recycled . | . . Recycled Matter . | . . Retrieved Matter . | . . Retrieved Components . | . . Parts Scanalyzed . | . . Part Schematics Acquired . | . . Parts Damaged . | . . Bothacking | -11 -10 ------------ Run | Yrd Mat Used RIF Installer . | . . Robots Hacked . | . . Non-combat . | . . Combat . | . . Robot Hacks Applied . | . . Relay Couplers Released . | . . Fabnet Peak Effective % . | . . Robots Rewired . | . . Allies Hacked . | . . Hacks Repelled . | . . Allies | -11 -10 -------- Run | Yrd Mat Total Allies . | . . Largest Group . | . . Highest-Rated Group . | . . Highest-Rated Ally . | . . Total Orders . | . . Ally Attacks . | . . Total Damage . | . . Kills . | . . Allies Corrupted . | . . Allies Melted . | . . Intel | -11 -10 ------- Run | Yrd Mat Robot Analysis Total 2 | . 2 Derelict Logs Recovered . | . . Drone Launches . | . . Drone Recoveries . | . . Exploration | -11 -10 ------------- Run | Yrd Mat Turns Passed 886 | 47 839 Spaces Moved 309 | 24 285 Core 41 | . 41 Treads 206 | . 206 Legs 10 | 10 . Wheels 52 | 14 38 Hover . | . . Flight . | . . Fastest Speed 100 | 100 100 Average Speed 238 | 108 249 Slowest Speed 500 | 120 500 Overloaded Moves . | . . Propulsion Burnouts . | . . Robots Hopped . | . . Cave-ins Triggered . | . . Exploration Rate (%) 30 | 3 57 Regions Visited 1 Branch Regions . Pre-discovered Areas . | . . Known Exits Taken . | . . Unknown Exits Taken 1 | 1 . Scrap Searched . | . . Spaces Dug . | . . Terrain Destroyed 3 | . 3 Melee . | . . Projectile . | . . AOE 3 | . 3 Terrain Rammed . | . . Walls Destroyed . | . . Machines Disabled . | . . Actions | -11 -10 --------- Run | Yrd Mat Total 376 | 33 343 Wait 5 | . 5 Move 308 | 23 285 Hop . | . . Pick Up 7 | . 7 Fast Attach 3 | 2 1 Attach 3 | . 3 Detach . | . . Swap 2 | . 2 Drop 4 | 2 2 Fire 44 | 6 38 Melee . | . . Ram . | . . Kick . | . . Crush . | . . Escape Stasis . | . . Rewire . | . . Trap . | . . Miscellaneous . | . . Route ------- -11/Scrapyard -10/Materials (discovered 4 exits: [*Mat] / [*Min x2] / [Sub]) History --------- Turn | Location | Event 14 | -11/Scrapyard | Discovered new exit (range 2) 48 | -11/Scrapyard | Entered Materials 152 | -10/Materials | Discovered new exit (range 16) 301 | -10/Materials | Build established: Mutant 634 | -10/Materials | Core integrity fell below 50% 675 | -10/Materials | Lost 4 parts (1p2n1w) 786 | -10/Materials | Discovered new exit (range 15) 806 | -10/Materials | Core integrity fell below 20% 813 | -10/Materials | Discovered new exit (range 10) 838 | -10/Materials | Discovered new exit (range 15) 887 | -10/Materials | Destroyed by G-34 Mercenary with Small Laser Last Messages --------------- 00795_ K-01 Serf cleans the Purification Channel. 00802_ Purification Channel disabled. 00804_ K-01 Serf collects debris. 00805_ Chain reaction triggered in Lgt. Ion Engine. 00805_ O-16 Technician destroyed. 00806_ U-05 Engineer lays Concrete. 00808_ Acquired 6 matter. 00809_ U-05 Engineer lays Concrete. 00813_ EXIT=FOUND 00814_ U-05 Engineer lays Concrete. 00819_ K-01 Serf collects debris. 00819_ U-05 Engineer lays Concrete. 00819_ R-06 Scavenger collects Hover Unit. 00820_ U-05 Engineer lays Concrete. 00821_ K-01 Serf collects debris. 00823_ U-05 Engineer lays Concrete. 00824_ K-01 Serf collects debris. 00838_ EXIT=FOUND 00843_ K-01 Serf collects debris. 00882_ K-01 Serf destroyed. Map ----- +----------------------------------------------------+ | ?????????????????????????????????????????????????? | | ?????????????????????????????????????????????????# | | ?????????????????????????????????????????????????# | | ?????????????????????????????????????????????????# | | ?????????????????????????????????????????????????# | | ?????????????????????????????????????????????????# | | ?????????????????????????????????????????????????# | | ?????????????????????????????????????????????????# | | ???????????????????????????????????????????????### | | ???????????????????????????????????????????????### | | ???????????????????????????????????????????????##" | | ???????????????????????????????????????????????##T | | ?????????????????? ????????????????????????????### | | ?????????????????? ???????????????????????????### | | ?????????????????? #######?????????????????????# | | ?????????????????? #######?????????????????????# | | ??????????????????? # #?????????????????????# | | ???????????????????? a ??????????????????????# | | ???????????????????? gg ??????????????????????# | | ?????????????????????t ??????????????????????# | | ?????????????????????# #?????????????????????# | | ?###########?????????## ##?????????? #### | | ?########## ?????????## ##??????????############ | | ?## # ?????????## ##?????????? ^ | | ?## """ #"??????##### ###????????? ^ | | ?## "Y" #"??????#####= @###????????? | | ?## #"??????##" =% ##?????????+########### | | ### """ # ??????##"" ##????????? ######## | | ###% """ # ##!! ##????????????????????# | | ### """ ####+#####"" < #